Workbook

Sheet Info en versiebeheer (hidden)

Sheet Invoer en Uitvoer
A2: Invoer: | B2: Naam Werkgever: | C2: Test
B3: Werkgeversnummer: | C3: 12345
B4: Ingangsdatum ANW: | C4: 2024-05-01 | E4: ANW Premie berekening | F4: 2024
B5: Naam deelnemer: | C5: Test
B6: Pensioennr deelnemer: | C6: 23432
B7: Geboortedatum deelnemer: | C7: 1967-04-04
B8: Geboortedatum partner: | C8: 1970-05-05
B9: Geslacht partner: | C9: M
B10: Verzekerd bedrag: | C10: 17800 | D10: ="Minimaal "& TEXT(Variabelen!E17,"€ #,##0.00")& " en Maximaal " &TEXT(Variabelen!E16,"€ #,##0.00") -> Minimaal € 9,600.00 en Maximaal € 19,100.00
A17: Uitvoer: | B17: Brutopremie per jaar: | C17: =Berekening!B25*Legaliteit -> 884.76
B18: Brutopremie per maand: | C18: =Berekening!B26*Legaliteit -> 73.73
B19: Brutopremie per 4wk: | C19: =Berekening!B27*Legaliteit -> 68.06

Sheet Berekening (hidden)
A1: Rekendatum: | B1: =rekdat -> 2024-05-01
A4: ='Invoer en Uitvoer'!B5 -> Naam deelnemer: | B4: ='Invoer en Uitvoer'!C5 -> Test
A5: ='Invoer en Uitvoer'!B6 -> Pensioennr deelnemer: | B5: ='Invoer en Uitvoer'!C6 -> 23432
A6: ='Invoer en Uitvoer'!B7 -> Geboortedatum deelnemer: | B6: ='Invoer en Uitvoer'!C7 -> 1967-04-04
A7: ='Invoer en Uitvoer'!B8 -> Geboortedatum partner: | B7: ='Invoer en Uitvoer'!C8 -> 1970-05-05
A8: ='Invoer en Uitvoer'!B9 -> Geslacht partner: | B8: ='Invoer en Uitvoer'!C9 -> M
A9: ='Invoer en Uitvoer'!B10 -> Verzekerd bedrag: | B9: ='Invoer en Uitvoer'!C10 -> 17800
A13: Burgerlijke leeftijd deelnemer: | B13: =FLOOR(YEARFRAC(B6,B1)*1,1) -> 57 | D13: Kleiner dan 66? | E13: =IF(B13<66,1,0) -> 1 | F13: Als 1 dan PVI opslag, anders 0)
A15: Burgerlijke leeftijd partner: | B15: =FLOOR(YEARFRAC(B7,B1)*1,1) -> 53
A17: Eénjarige risicopremies per €1.000 (netto) | B17: =VLOOKUP(B13,risicopremies,2,FALSE) -> 3.32
A18: Eénjarige risicopremies per €1.000 (bruto) | B18: =B17*(1+excasso_opslag)*(1+solvabiliteit_opslag)*(1+pvi_indicator*pvi_opslag) -> 4.30481407 | C18: incl excasso / solvabiliteit / PVI (als burgelijke leeftijd <66)
A20: OVL risicokapitaal: | B20: =B9*B18 -> 76625.69045
A21: OVL risicokapitaal / 1000: | B21: =B20/1000 -> 76.62569045
A23: CW factor | B23: =VLOOKUP(B15,ITPP68,2+IF(B8="M",0,1),FALSE) -> 11.54651
A25: Premie per jaar | B25: =ROUND(B23*B21,2)*Legaliteit -> 884.76
A26: Premie per maand | B26: =ROUND(B25/12,2)*Legaliteit -> 73.73
A27: Premie per 4wk | B27: =ROUND(B25/13,2)*Legaliteit -> 68.06

Sheet ITPP68 (hidden)
A1: Meubel
B3: ITPP CW factoren van 1-1-2024 tot 31-12-2024
A5: leeftijd | B5: M | C5: V
A6: 15 | B6: 26.74373 | C6: 26.78148
A7: 16 | B7: 26.46555 | C7: 26.50441
A8: 17 | B8: 26.18317 | C8: 26.22246
A9: 18 | B9: 25.89582 | C9: 25.93557
A10: 19 | B10: 25.60419 | C10: 25.64347
A11: 20 | B11: 25.30851 | C11: 25.34662
A12: 21 | B12: 25.00818 | C12: 25.04456
A13: 22 | B13: 24.7029 | C13: 24.73729
A14: 23 | B14: 24.39233 | C14: 24.42477
A15: 24 | B15: 24.07702 | C15: 24.10677
A16: 25 | B16: 23.75647 | C16: 23.78312
A17: 26 | B17: 23.43049 | C17: 23.45412
A18: 27 | B18: 23.09858 | C18: 23.11942
A19: 28 | B19: 22.76008 | C19: 22.77907
A20: 29 | B20: 22.41519 | C20: 22.43254
A21: 30 | B21: 22.06295 | C21: 22.07913
A22: 31 | B22: 21.70298 | C22: 21.71855
A23: 32 | B23: 21.33586 | C23: 21.35071
A24: 33 | B24: 20.9614 | C24: 20.97545
A25: 34 | B25: 20.57908 | C25: 20.59291
A26: 35 | B26: 20.18913 | C26: 20.20301
A27: 36 | B27: 19.79154 | C27: 19.80537
A28: 37 | B28: 19.38598 | C28: 19.39996
A29: 38 | B29: 18.97238 | C29: 18.98669
A30: 39 | B30: 18.55043 | C30: 18.56513
A31: 40 | B31: 18.12007 | C31: 18.13513
A32: 41 | B32: 17.68104 | C32: 17.69661
A33: 42 | B33: 17.23321 | C33: 17.2497
A34: 43 | B34: 16.77648 | C34: 16.79401
A35: 44 | B35: 16.30971 | C35: 16.32803
A36: 45 | B36: 15.83186 | C36: 15.8514
A37: 46 | B37: 15.34224 | C37: 15.36305
A38: 47 | B38: 14.841 | C38: 14.86385
A39: 48 | B39: 14.32806 | C39: 14.35276
A40: 49 | B40: 13.80196 | C40: 13.82821
A41: 50 | B41: 13.261 | C41: 13.28888
A42: 51 | B42: 12.70492 | C42: 12.73434
A43: 52 | B43: 12.13357 | C43: 12.16466
A44: 53 | B44: 11.54651 | C44: 11.57898
A45: 54 | B45: 10.94202 | C45: 10.97481
A46: 55 | B46: 10.31745 | C46: 10.35016
A47: 56 | B47: 9.67264 | C47: 9.70447
A48: 57 | B48: 9.0062 | C48: 9.03651
A49: 58 | B49: 8.31745 | C49: 8.34534
A50: 59 | B50: 7.60558 | C50: 7.63035
A51: 60 | B51: 6.86936 | C51: 6.89095
A52: 61 | B52: 6.10847 | C52: 6.12722
A53: 62 | B53: 5.32228 | C53: 5.33857
A54: 63 | B54: 4.5102 | C54: 4.52365
A55: 64 | B55: 3.67141 | C55: 3.6814
A56: 65 | B56: 2.80439 | C56: 2.81107
A57: 66 | B57: 1.90726 | C57: 1.91069
A58: 67 | B58: 0.97534 | C58: 0.97631
A59: 68 | B59: 0 | C59: 0

Sheet Variabelen (hidden)
A1: MBL
A2: Bron: | B2: Rekenwaarden 2024-3 BPF_Meubel
A9: Opslagen | B9: excasso | C9: solvabiliteit | D9: pvi
A10: 2021-01-01 | B10: 0.03 | C10: 0.175 | D10: 0.0344
A11: 2022-01-01 | B11: 0.03 | C11: 0.178 | D11: 0.0344
A12: 2023-01-01 | B12: 0.03 | C12: 0.184 | D12: 0.0344
A13: 2024-01-01 | B13: 0.03 | C13: 0.217 | D13: 0.0344
B15: 2021 | C15: 2022 | D15: 2023 | E15: 2024
A16: Maximale hoogte ANW | B16: 16000 | C16: 16200 | D16: 17900 | E16: 19100
A17: Minimale hoogte ANW | B17: 8000 | C17: 8100 | D17: =ROUND(D16*50%,-2) -> 9000 | E17: =ROUND(E16*50%,-2) -> 9600
A19: X:\Finance\Actuariaat\Fondsen\BPF Meubel\Herverzekering\Ellips herverzekering Meubel.xlsx
A20: premie
A21: Begin | B21: Eind
A22: 2020-01-01 | B22: 2024-12-31
A23: ADDENDUM NO. 1 herverzekering van overlijdensrisicokapitalen
A24: M/V | B24: Eénjarige risicopremies per €1.000,= overlijdensrisicokapitaal
A25: leeftijd | B25: 0/00
A26: 17 | B26: 0.23
A27: 18 | B27: 0.23
A28: 19 | B28: 0.23
A29: 20 | B29: 0.24
A30: 21 | B30: 0.24
A31: 22 | B31: 0.24
A32: 23 | B32: 0.24
A33: 24 | B33: 0.25
A34: 25 | B34: 0.25
A35: 26 | B35: 0.25
A36: 27 | B36: 0.25
A37: 28 | B37: 0.26
A38: 29 | B38: 0.26
A39: 30 | B39: 0.29
A40: 31 | B40: 0.33
A41: 32 | B41: 0.38
A42: 33 | B42: 0.41
A43: 34 | B43: 0.45
A44: 35 | B44: 0.47
A45: 36 | B45: 0.48
A46: 37 | B46: 0.49
A47: 38 | B47: 0.5
A48: 39 | B48: 0.57
A49: 40 | B49: 0.64
A50: 41 | B50: 0.71
A51: 42 | B51: 0.83
A52: 43 | B52: 0.98
A53: 44 | B53: 1.11
A54: 45 | B54: 1.26
A55: 46 | B55: 1.34
A56: 47 | B56: 1.5
A57: 48 | B57: 1.63
A58: 49 | B58: 1.72
A59: 50 | B59: 1.81
A60: 51 | B60: 2.02
A61: 52 | B61: 2.24
A62: 53 | B62: 2.56
A63: 54 | B63: 2.71
A64: 55 | B64: 2.87
A65: 56 | B65: 3.18
A66: 57 | B66: 3.32
A67: 58 | B67: 3.45
A68: 59 | B68: 3.53
A69: 60 | B69: 3.68
A70: 61 | B70: 4
A71: 62 | B71: 4.51
A72: 63 | B72: 4.88
A73: 64 | B73: 5.42
A74: 65 | B74: 6.31
A75: 66 | B75: 6.89
A76: 67 | B76: 7.66
A77: 68 | B77: 8.51
A78: 69 | B78: 9.43

Sheet Legaliteit (hidden)
